bitfinex/quotes_ETHUSD_20251214
["timestamp","ask_amount","ask_price","bid_price","bid_amount"]
[1765752435646,3.59157538,3064.9,3064.8,1e-08]
[1765752436046,6.85432457,3064.9,3064.8,1e-08]
[1765752436540,6.33332457,3064.9,3064.8,1e-08]
[1765752436760,6.85432457,3064.9,3064.8,1e-08]
[1765752439656,6.33332457,3064.9,3064.8,1e-08]
[1765752439843,6.85432457,3064.9,3064.8,1e-08]
[1765752449643,6.33332457,3064.9,3064.8,1e-08]
[1765752449944,3.26764919,3064.9,3064.8,0.47580001]
[1765752450161,3.84812448,3064.9,3064.8,0.47580001]
[1765752450363,3.26764919,3064.9,3064.8,0.47580001]
[1765752450666,3.26764919,3064.9,3064.8,1e-08]
[1765752450866,3.26864919,3064.9,3064.8,1e-08]
[1765752451164,3.44784919,3064.9,3064.8,1e-08]
[1765752451365,3.91594919,3064.9,3064.8,1e-08]
[1765752451559,4.16569774,3064.9,3064.8,1e-08]
[1765752451866,4.63379774,3064.9,3064.8,1e-08]
[1765752455168,5.15479774,3064.9,3064.8,1e-08]
[1765752455370,9.47305238,3064.9,3064.8,1e-08]
[1765752455599,9.60368147,3064.9,3064.8,1e-08]
[1765752457276,0.481804,3064.5,3064.4,1e-08]
[1765752457475,9.05883799,3064.5,3064.4,1e-08]
[1765752457647,9.52693799,3064.5,3064.4,1e-08]
[1765752457847,9.65761402,3064.5,3064.4,1e-08]
[1765752458061,13.09261402,3064.5,3064.4,1e-08]
[1765752458271,14.44640307,3064.5,3064.4,1e-08]
[1765752458673,14.44640307,3064.5,3063.5,1e-08]
[1765752458674,0.4697,3063.6,3063.5,1e-08]
[1765752458875,4.80797935,3063.6,3063.5,1e-08]
[1765752459048,5.38845464,3063.6,3063.5,1e-08]
[1765752459374,9.109288,3063.6,3063.5,1e-08]
[1765752459576,9.109288,3063.6,3062.5,1e-08]
[1765752459577,1.086904,3062.6,3062.5,1e-08]
[1765752459743,5.92615864,3062.6,3062.5,1e-08]
[1765752459946,5.97795864,3062.6,3062.5,1e-08]
[1765752460245,5.45695864,3062.6,3062.5,1e-08]
[1765752460450,6.94462844,3062.6,3062.5,1e-08]
[1765752460650,6.42362844,3062.6,3062.5,1e-08]
[1765752460850,6.94462844,3062.6,3062.5,1e-08]
[1765752461050,6.42362844,3062.6,3062.5,1e-08]
[1765752461261,6.49192844,3062.6,3062.5,1e-08]
[1765752461552,9.75712794,3062.6,3062.5,1e-08]
[1765752462378,9.18432794,3062.6,3062.5,1e-08]
[1765752462577,9.70532794,3062.6,3062.5,1e-08]
[1765752463254,9.75712794,3062.6,3062.5,1e-08]
[1765752463581,6.01934859,3062.6,3062.5,1e-08]
[1765752464454,4.8660733,3062.6,3062.5,1e-08]
[1765752464650,3.7641995,3062.6,3062.5,1e-08]
[1765752464879,4.2851995,3062.6,3062.5,1e-08]
[1765752465058,4.86567479,3062.6,3062.5,1e-08]
[1765752465783,4.34467479,3062.6,3062.5,1e-08]
[1765752465985,4.86567479,3062.6,3062.5,1e-08]
[1765752466965,5.67874905,3062.6,3062.5,1e-08]
[1765752467189,3.2650678,3062.8,3062.5,0.47580001]
[1765752467190,0.521,3062.8,3062.5,0.47580001]
[1765752468171,3.26509289,3062.7,3062.5,0.47580001]
[1765752468666,0.0811,3062.6,3062.5,1e-08]
[1765752468995,0.5453,3062.6,3062.5,1e-08]
[1765752469188,1.12577529,3062.6,3062.5,1e-08]
[1765752469388,2.26996969,3062.6,3062.5,1e-08]
[1765752470179,5.53516919,3062.6,3062.5,1e-08]
[1765752473174,5.07096919,3062.6,3062.5,1e-08]
[1765752473672,5.53516919,3062.6,3062.5,1e-08]
[1765752474599,9.37567319,3062.6,3062.5,1e-08]
[1765752475614,5.07096919,3062.6,3062.5,1e-08]
[1765752475790,6.05616919,3062.6,3062.5,1e-08]
[1765752478681,6.91437319,3062.6,3062.5,1e-08]
[1765752478909,6.91537319,3062.6,3062.5,1e-08]
[1765752480684,10.35037319,3062.6,3062.5,1e-08]
[1765752481109,15.21858876,3062.6,3062.5,1e-08]
[1765752482590,15.22124511,3062.6,3062.5,1e-08]
[1765752483981,15.22124511,3062.6,3061.2,0.002]
[1765752483982,3.435,3062.4,3061.2,0.002]
[1765752484217,6.31477415,3062.4,3061.3,0.4884]
[1765752484420,6.78107415,3062.4,3061.2,0.002]
[1765752485212,10.04648689,3062.4,3061.2,0.002]
[1765752485671,3.435,3061.8,3061.2,0.002]
[1765752485821,0.65867529,3061.3,3061.2,0.002]
[1765752485990,0.5992,3061.3,3061.2,0.002]
[1765752486191,0.0782,3061.3,3061.2,0.002]
[1765752486504,0.5992,3061.3,3061.2,0.002]
[1765752487220,4.36806138,3061.3,3061.2,0.4694]
[1765752487406,5.13151443,3061.3,3061.2,0.4694]
[1765752487724,5.13151443,3061.3,3061.2,0.9578]
[1765752488293,4.61051443,3061.3,3061.2,0.9578]
[1765752488499,4.36806138,3061.3,3061.2,0.9578]
[1765752489021,3.84706138,3061.3,3061.2,0.9578]
[1765752489402,3.84706138,3061.3,3061.2,0.4694]
[1765752490307,3.92986138,3061.3,3061.2,0.002]
[1765752491142,8.23286538,3061.3,3061.2,0.002]
[1765752491345,9.92620694,3061.3,3061.2,0.002]
[1765752491518,14.65669115,3061.3,3061.2,0.002]
[1765752492042,6.02378185,3061.3,3061.2,0.002]
[1765752492227,5.56372765,3061.3,3061.2,0.002]
[1765752492434,6.14420294,3061.3,3061.2,0.002]
[1765752492799,5.54040294,3061.3,3061.2,0.002]
[1765752493001,6.06140294,3061.3,3061.2,0.4694]
[1765752493441,6.1036121,3061.3,3061.2,0.4694]
[1765752493633,5.6692121,3061.3,3061.2,0.002]
[1765752493833,6.1902121,3061.3,3061.2,0.002]
[1765752494342,6.6490121,3061.3,3061.2,0.002]
[1765752494855,10.34374211,3061.3,3061.2,0.002]
[1765752495747,9.82274211,3061.3,3061.2,0.002]
[1765752495909,10.34374211,3061.3,3061.2,0.002]
[1765752496506,10.40244211,3061.3,3061.2,0.002]
[1765752497162,10.80794611,3061.3,3061.2,0.002]
[1765752497320,10.74924611,3061.3,3061.2,0.002]
[1765752498055,14.18424611,3061.3,3061.2,0.002]
[1765752498617,10.4305161,3061.3,3061.2,0.002]
[1765752498845,10.74494611,3061.3,3061.2,0.002]
[1765752499445,10.33944211,3061.3,3061.2,0.002]
[1765752500318,10.33944211,3061.3,3060.0,1.202]
[1765752500319,0.58047529,3061.0,3060.0,1.202]
[1765752500520,3.435,3061.1,3060.0,1.202]
[1765752500521,0.04220916,3060.3,3060.0,1.202]
[1765752500837,0.521,3060.2,3060.1,0.1993]
[1765752501031,0.521,3060.2,3060.1,0.6877]
[1765752501217,0.521,3060.2,3060.1,1.1551]
[1765752501418,3.78876027,3060.2,3060.1,1.1551]
[1765752501829,3.78876027,3060.2,3060.0,1.202]
[1765752501830,0.58047529,3060.1,3060.0,1.202]
[1765752502031,4.37671446,3060.1,3060.0,1.202]
[1765752502829,0.98597929,3060.0,3059.9,0.002]
[1765752503044,1.53047929,3060.0,3059.9,0.002]
[1765752503243,3.25134451,3060.0,3059.9,0.002]
[1765752503556,3.45064451,3060.0,3059.9,0.002]
[1765752503753,6.71861836,3060.0,3059.9,0.002]
[1765752505333,15.03270208,3060.0,3059.9,0.002]
[1765752505665,15.03270208,3060.0,3057.8,0.1993]
[1765752505666,0.405504,3059.1,3057.8,0.1993]
[1765752505845,0.4907,3058.8,3057.8,0.6877]
[1765752506051,0.6299,3058.8,3057.8,0.6877]
[1765752506353,1.781804,3058.8,3057.8,0.1993]
[1765752507458,1.781804,3058.8,3056.6,0.153]
[1765752507459,1.781804,3058.8,3056.6,0.006]
[1765752507460,3.435,3058.0,3056.6,0.006]
[1765752507656,2.16157015,3058.7,3056.6,0.006]
[1765752507657,0.98597929,3057.2,3056.6,0.006]
[1765752507875,0.521,3057.1,3056.6,0.5059]
[1765752508036,0.521,3057.1,3056.6,0.006]
[1765752508359,0.5059,3057.0,3056.7,0.4999]
[1765752508658,0.04220916,3056.9,3056.7,0.4999]
[1765752508847,0.521,3057.0,3056.9,0.4599]
[1765752509049,0.521,3057.0,3056.9,0.9598]
[1765752509761,3.79218089,3057.0,3056.9,0.9598]
[1765752510139,3.27118089,3057.0,3056.9,0.9598]
[1765752510339,3.85165618,3057.0,3056.9,0.9598]
[1765752510655,3.27118089,3057.0,3056.9,0.9598]
[1765752512257,7.72180598,3057.0,3056.6,0.006]
[1765752512434,0.04220916,3056.8,3056.6,0.006]
[1765752512636,0.04220916,3056.8,3056.6,0.5059]
[1765752512830,7.72180598,3057.0,3056.7,0.4599]
[1765752513037,0.04220916,3056.9,3056.7,0.4599]
[1765752513237,0.04220916,3056.9,3056.7,0.4999]
[1765752513449,0.04220916,3056.9,3056.8,0.4599]
[1765752513649,7.72180598,3057.0,3056.8,0.4599]
[1765752513845,5.03110038,3057.0,3056.9,0.4599]
[1765752514046,3.85165618,3057.0,3056.6,0.006]
[1765752514251,0.04220916,3056.9,3056.6,0.006]
[1765752514549,0.04220916,3056.9,3056.6,0.5059]
[1765752514742,0.04220916,3056.9,3056.8,0.4599]
[1765752515371,0.04220916,3056.9,3056.8,0.9598]
[1765752516365,4.04421344,3056.9,3056.8,0.9598]
[1765752517438,3.27000425,3058.1,3056.8,7.50250418]
[1765752517634,3.27000425,3058.1,3057.5,0.1858]
[1765752517840,3.26968349,3058.4,3058.0,0.4599]
[1765752518060,6.5378706,3059.1,3058.3,0.6457]
[1765752518263,0.04220916,3059.2,3059.1,0.6457]
[1765752518264,0.34923137,3059.2,3059.1,0.6457]
[1765752518571,0.98153567,3059.7,3059.1,0.6457]
[1765752518572,3.26837302,3059.7,3059.1,1.1456]
[1765752518867,0.58047529,3059.9,3059.6,0.4599]
[1765752519245,0.58047529,3059.9,3059.2,0.4999]
[1765752519448,6.53637492,3059.8,3059.2,0.4999]
[1765752519781,1.23411278,3059.7,3059.2,0.4999]
[1765752520073,0.65363749,3059.7,3059.2,0.4999]
[1765752520280,1.23411278,3059.7,3059.6,0.4599]
[1765752520444,0.65363749,3059.7,3059.6,0.4599]
[1765752520766,3.26810506,3059.9,3059.6,0.9598]
[1765752520964,3.26786706,3060.1,3059.8,0.4599]
[1765752521165,3.84834235,3060.1,3060.0,0.4599]
[1765752521538,3.26786706,3060.1,3060.0,0.9598]
[1765752522074,3.84834235,3060.1,3060.0,0.9598]
[1765752522378,4.61225313,3060.1,3060.0,0.9598]
[1765752522748,0.58047529,3060.0,3058.3,0.1858]
[1765752522954,0.04220916,3059.8,3059.1,0.4999]
[1765752523282,0.522,3059.8,3059.1,0.4999]
[1765752523449,0.522,3059.8,3059.7,0.4599]
[1765752523642,3.79018746,3059.8,3059.7,0.4599]
[1765752523969,4.55828045,3059.8,3059.7,0.4599]
[1765752524884,0.58047529,3059.7,3059.1,0.002]
[1765752525045,0.62268445,3059.7,3059.1,0.002]
[1765752525945,0.58047529,3059.5,3059.1,0.5019]
[1765752526285,0.521,3059.4,3059.1,0.5019]
[1765752526969,0.521,3059.4,3059.3,0.4599]
[1765752527175,1.61166786,3059.4,3059.3,0.4599]
[1765752528072,5.46075791,3059.4,3059.3,0.4599]
[1765752529259,0.58047529,3059.3,3059.1,0.002]
[1765752529671,0.58047529,3059.3,3059.2,0.4599]
[1765752529980,1.45763347,3059.3,3059.2,0.4599]
[1765752530152,4.14587978,3059.3,3059.2,0.4599]
[1765752531888,4.14587978,3059.3,3059.1,0.002]
[1765752531889,4.43208894,3059.3,3059.1,0.002]
[1765752532191,0.7338,3059.2,3059.1,0.002]
[1765752532356,1.60505037,3059.2,3059.1,0.002]
[1765752532684,2.01055437,3059.2,3059.1,0.002]
[1765752534185,5.27938282,3059.2,3059.1,0.002]
[1765752534688,5.53488282,3059.2,3059.1,0.002]
[1765752535189,4.14007882,3059.2,3059.1,0.4619]
[1765752535389,4.66107882,3059.2,3059.1,0.4619]
[1765752536086,4.70328798,3059.2,3059.1,0.4619]
[1765752536255,4.66107882,3059.2,3059.1,0.4619]
[1765752536785,4.66107882,3059.2,3059.1,0.919]
[1765752538392,0.87125037,3059.2,3059.1,0.919]
[1765752538687,0.521,3059.3,3059.1,0.919]
[1765752538881,3.2697153,3059.4,3059.2,0.9403]
[1765752539081,3.2697153,3059.4,3059.3,0.4832]
[1765752539082,3.7907153,3059.4,3059.3,0.4832]
[1765752539278,3.2697153,3059.4,3059.3,0.9403]
[1765752539477,0.001,3059.4,3059.3,0.9403]
[1765752540700,0.32794303,3059.4,3059.3,0.9403]
[1765752540863,0.001,3059.4,3059.3,0.9403]
[1765752542207,0.001,3059.4,3059.3,0.4832]
[1765752542396,7.01379504,3059.4,3059.1,0.002]
[1765752542599,0.56320916,3059.3,3059.1,0.002]
[1765752545421,3.26882845,3059.2,3059.1,0.002]
[1765752545747,4.61751651,3059.2,3059.1,0.002]
[1765752548495,5.09091651,3059.2,3059.1,0.002]
[1765752549625,4.61751651,3059.2,3059.1,0.4852]
[1765752551092,4.61751651,3059.2,3059.1,0.9423]
[1765752553525,0.001,3059.3,3059.1,0.9423]
[1765752553725,0.001,3059.3,3059.2,0.9403]
[1765752554593,3.26821878,3059.8,3059.2,0.9403]
[1765752554594,0.001,3060.2,3059.3,0.888704]
[1765752554922,0.001,3060.2,3060.1,0.6738]
[1765752555323,0.001,3060.6,3060.2,0.405504]
[1765752555622,0.001,3060.6,3060.5,0.4832]
[1765752556032,0.001,3060.6,3060.5,0.9403]
[1765752558293,0.001,3060.6,3060.5,0.4832]
[1765752561819,0.001,3060.6,3060.5,0.9403]
[1765752562214,0.001,3060.6,3060.5,0.4832]
[1765752564503,0.001,3060.6,3060.1,0.7116]
[1765752564708,0.001,3060.6,3060.5,0.4832]
[1765752565427,0.001,3060.6,3060.5,0.9403]
[1765752567835,0.001,3060.6,3060.5,0.4832]
[1765752569246,0.001,3060.6,3060.0,0.002]
[1765752569247,0.90021197,3060.6,3060.0,0.002]
[1765752569541,0.0923,3060.1,3060.0,0.002]
[1765752569739,0.6133,3060.1,3060.0,0.002]
[1765752569919,4.46164235,3060.1,3060.0,0.002]
[1765752570122,5.28681225,3060.1,3060.0,0.002]
[1765752570521,4.76581225,3060.1,3060.0,0.002]
[1765752570746,5.28681225,3060.1,3060.0,0.002]
[1765752573249,4.76581225,3060.1,3060.0,0.002]
[1765752573442,4.36934235,3060.1,3060.0,0.4628]
[1765752574056,3.84834235,3060.1,3060.0,0.4628]
[1765752574344,4.36934235,3060.1,3060.0,0.4628]
[1765752574847,3.30974288,3060.5,3060.0,0.9133]
[1765752574848,3.26745606,3060.5,3060.0,0.9133]
[1765752575046,3.26745606,3060.5,3060.4,0.6572]
[1765752575265,3.84793135,3060.5,3060.4,0.6572]
[1765752575548,7.20858741,3060.5,3060.1,0.1964]
[1765752575773,7.92954615,3060.5,3060.0,0.002]
[1765752575954,8.45054615,3060.5,3060.0,0.002]
[1765752576124,8.45054615,3060.5,3060.1,0.1964]
[1765752576125,7.92954615,3060.5,3060.1,0.1964]
[1765752576320,7.20858741,3060.5,3060.1,0.1964]
[1765752577221,7.20858741,3060.5,3060.1,0.6469]
[1765752577529,7.11538741,3060.5,3060.1,0.6469]
[1765752579053,7.11538741,3060.5,3060.2,0.4505]
[1765752579769,3.84793135,3060.5,3060.4,0.4608]
[1765752580536,0.58047529,3060.4,3060.0,0.002]
[1765752581164,0.58047529,3060.4,3060.0,0.4525]
[1765752582164,6.53530698,3060.3,3060.0,0.4525]
[1765752582848,3.26765349,3060.3,3060.2,0.4608]
[1765752583555,3.26765349,3060.3,3060.2,0.9113]
[1765752585047,0.58047529,3060.4,3060.2,0.9113]
[1765752585254,0.58047529,3060.4,3060.2,0.4505]
[1765752585461,0.58047529,3060.4,3060.3,0.4608]
[1765752586269,0.58047529,3060.4,3060.3,0.9113]
[1765752587769,3.26754672,3060.4,3060.3,0.9113]
[1765752589369,3.26754672,3060.4,3060.3,0.4608]
[1765752589574,3.26754672,3060.4,3060.3,0.9113]
[1765752589987,3.26853672,3060.5,3060.3,0.9113]
[1765752590292,3.26853672,3060.5,3060.4,0.4608]
[1765752590293,3.84901201,3060.5,3060.4,0.4608]
[1765752590866,0.58047529,3060.4,3060.0,0.4525]
[1765752591067,0.58047529,3060.4,3060.1,0.4505]
[1765752591268,0.58047529,3060.4,3060.3,0.4608]
[1765752592078,3.84802201,3060.4,3060.3,0.4608]
[1765752593681,8.4017246,3060.4,3060.0,0.002]
[1765752593885,8.1145246,3060.4,3060.0,0.002]
[1765752594094,8.4017246,3060.4,3060.0,0.002]
[1765752594390,0.2872,3060.1,3060.0,0.002]
[1765752595580,4.07606706,3060.1,3060.0,0.002]
[1765752595754,4.81044899,3060.1,3060.0,0.002]
[1765752596491,5.67812428,3060.1,3060.0,0.002]
[1765752613594,6.08362828,3060.1,3060.0,0.002]
[1765752614594,9.52562828,3060.1,3060.0,0.002]
[1765752614802,15.85562828,3060.1,3060.0,0.002]
[1765752614969,0.405504,3059.4,3059.1,0.002]
[1765752615170,4.62067929,3059.2,3059.1,0.002]
[1765752615398,4.62067929,3059.2,3058.8,0.002]
[1765752615399,4.132004,3058.9,3058.8,1e-08]
[1765752615598,5.23347929,3058.9,3058.8,1e-08]
[1765752615808,8.98822833,3058.9,3058.8,1e-08]
[1765752615971,11.64041644,3058.9,3058.8,1e-08]
[1765752616171,11.64041644,3058.9,3057.9,0.002]
[1765752616172,4.92097929,3058.8,3057.9,0.002]
[1765752616373,4.52177929,3058.0,3057.9,0.002]
[1765752616580,5.04277929,3058.0,3057.9,0.002]
[1765752616792,5.52837929,3058.0,3057.9,0.002]
[1765752617386,1.07977929,3058.0,3057.9,0.002]
[1765752617587,0.13600916,3058.0,3057.9,0.002]
[1765752617818,4.50759563,3058.0,3057.9,0.002]
[1765752618319,4.41379563,3058.0,3057.9,0.4571]
[1765752618519,3.99389563,3058.0,3057.9,0.002]
[1765752618707,5.76785525,3058.0,3057.9,0.002]
[1765752618906,6.17335925,3058.0,3057.9,0.002]
[1765752619416,9.93066432,3058.0,3057.9,0.002]
[1765752620788,5.17055925,3058.0,3057.9,0.002]
[1765752621009,5.18495525,3058.0,3057.9,0.002]
[1765752621189,5.59045925,3058.0,3057.9,0.002]
[1765752621390,4.66395525,3058.0,3057.9,0.4571]
[1765752621592,5.18495525,3058.0,3057.9,0.4571]
[1765752621818,5.18495525,3058.0,3057.9,0.9235]
[1765752622215,5.18495525,3058.0,3057.9,0.002]
[1765752622216,10.57461272,3058.0,3057.9,0.002]
[1765752622404,6.17335925,3058.0,3057.9,0.002]
[1765752623405,5.59045925,3058.0,3057.9,0.002]
[1765752623604,5.18495525,3058.0,3057.9,0.4571]
[1765752623816,4.41379563,3058.0,3057.9,0.4571]
[1765752624212,3.83332034,3058.0,3057.9,0.9235]
[1765752624726,4.41379563,3058.0,3057.9,0.9235]
[1765752625834,3.85058647,3058.0,3057.9,0.9235]
[1765752626031,9.8068059,3059.1,3057.9,0.9235]
[1765752626227,6.53658854,3059.7,3058.5,0.1999]
[1765752626526,0.521,3059.6,3059.1,0.4551]
[1765752626726,0.521,3059.6,3059.2,0.473]
[1765752626727,1.10147529,3059.6,3059.2,0.473]
[1765752626927,1.10147529,3059.6,3059.5,0.4977]
[1765752627121,1.90749083,3059.6,3059.5,0.4977]
[1765752627722,1.32701554,3059.6,3059.5,0.4977]
[1765752627929,1.90749083,3059.6,3059.5,0.4977]
[1765752628230,0.58047529,3059.4,3058.5,0.1999]
[1765752628437,0.04220916,3059.3,3058.9,0.473]
[1765752628822,0.04220916,3059.3,3059.2,0.4977]
[1765752629904,0.04320916,3059.3,3059.2,0.4977]
[1765752630943,6.5376569,3059.2,3058.5,0.1999]
[1765752631108,0.56320916,3059.1,3058.5,0.1999]
[1765752631311,0.56320916,3059.1,3058.5,0.6943]
[1765752631834,0.56320916,3059.1,3058.6,0.4944]
[1765752633034,3.83214446,3059.1,3059.0,0.4522]
[1765752633234,4.54656267,3059.1,3059.0,0.4522]
[1765752633441,4.54656267,3059.1,3058.6,0.4944]
[1765752633442,7.81549797,3059.1,3058.6,0.4944]
[1765752635007,3.83214446,3059.1,3059.0,0.4522]
[1765752636139,3.2689353,3059.1,3059.0,0.4522]
[1765752636348,3.7899353,3059.1,3059.0,0.9466]
[1765752636506,3.7899353,3059.1,3058.5,0.1999]
[1765752636712,0.04220916,3059.0,3058.5,0.1999]
[1765752636912,0.04220916,3059.0,3058.5,0.6943]
[1765752637119,3.26914904,3058.9,3058.6,0.4944]
[1765752637525,3.26914904,3058.9,3058.8,0.4522]
[1765752639247,3.26914904,3058.9,3058.8,0.9466]
[1765752641422,3.26904217,3059.0,3058.8,0.9466]
[1765752641947,3.26904217,3059.0,3058.5,0.6943]
[1765752642153,3.26904217,3059.0,3058.9,0.4522]
[1765752643855,3.26904217,3059.0,3058.6,0.4944]
[1765752644351,3.26904217,3059.0,3058.9,0.4522]
[1765752645751,0.001,3059.1,3058.9,0.9466]
[1765752645919,0.001,3059.1,3059.0,3.72124217]
[1765752646124,0.001,3059.1,3059.0,4.96412218]
[1765752646528,0.001,3059.3,3059.0,8.75416435]
[1765752646753,0.001,3059.3,3059.2,0.4522]
[1765752646950,0.001,3059.3,3059.2,0.9466]
[1765752648040,0.001,3059.3,3059.2,4.21542845]
[1765752648237,0.001,3059.3,3059.2,5.09082351]
[1765752648436,0.001,3059.3,3059.2,5.49632751]
[1765752652269,0.001,3059.3,3059.2,6.0768028]
[1765752652833,0.001,3059.3,3059.2,36.0768028]
[1765752654174,0.001,3059.3,3059.2,36.44632835]
[1765752655150,0.001,3060.2,3059.5,0.98597929]
[1765752655487,0.001,3060.2,3060.1,31.63387929]
[1765752655700,0.001,3060.2,3060.1,32.15487929]
[1765752655902,0.001,3060.2,3060.1,2.64927929]
[1765752656557,0.001,3060.2,3060.1,5.91714635]
[1765752656753,0.001,3060.2,3060.1,5.81553531]
[1765752656953,0.001,3060.2,3060.1,6.33653531]
[1765752657154,0.001,3060.2,3060.1,36.33653531]
[1765752657349,0.001,3060.2,3060.1,36.73022753]
[1765752657554,0.001,3060.2,3060.1,36.33653531]
[1765752658490,0.001,3060.2,3060.1,36.73022753]
[1765752661955,0.001,3060.2,3060.1,35.41003131]
[1765752662168,0.001,3060.2,3060.1,5.93103131]
[1765752662374,0.001,3060.2,3060.1,35.35055602]
[1765752662675,0.001,3060.2,3060.1,36.33653531]
[1765752664089,0.001,3060.2,3060.1,36.73022753]
[1765752664417,1e-08,3060.6,3060.5,0.4964]
[1765752664580,1e-08,3060.6,3060.5,37.27534624]
[1765752664775,1e-08,3060.6,3060.5,38.33352153]
[1765752664980,1e-08,3060.6,3060.5,37.81252153]
[1765752665379,1e-08,3060.6,3060.5,38.33352153]
[1765752665893,1e-08,3060.6,3060.5,41.60096149]
[1765752666583,1e-08,3060.6,3060.5,41.99465371]
[1765752668973,0.001,3061.5,3061.1,0.405504]
[1765752669177,0.001,3061.5,3061.4,31.67737929]
[1765752669609,0.001,3061.5,3061.4,32.15507929]
[1765752670584,0.001,3061.5,3061.4,32.67607929]
[1765752670784,0.001,3061.5,3061.4,35.94255867]
[1765752671217,0.001,3061.5,3061.4,35.42155867]
[1765752671408,0.001,3061.5,3061.4,37.55245933]
[1765752671917,0.001,3061.5,3061.4,6.62595533]
[1765752672126,0.001,3061.5,3061.4,7.14595533]
[1765752672417,0.001,3061.5,3061.4,13.04851333]
[1765752672797,0.001,3061.5,3061.4,13.45401733]
[1765752673003,0.001,3061.5,3061.4,10.06970533]
[1765752673891,0.001,3061.5,3061.4,6.62595533]
[1765752674204,0.001,3061.5,3061.4,7.55145933]
[1765752674406,0.001,3061.5,3061.4,7.14595533]
[1765752674711,0.001,3061.5,3061.4,7.55145933]
[1765752676390,0.001,3061.5,3061.4,11.38445933]
[1765752678303,0.001,3061.5,3061.4,17.89696033]
[1765752678623,0.001,3061.5,3061.4,24.42795033]
[1765752679500,1e-08,3061.8,3061.7,30.901904]
[1765752679799,1e-08,3061.8,3061.7,37.86733004]
[1765752680018,1e-08,3061.8,3061.7,38.34503004]
[1765752681516,1e-08,3061.8,3061.7,41.61118936]
[1765752682210,1e-08,3061.8,3061.7,42.13118936]
[1765752685575,1e-08,3061.8,3061.7,41.61118936]
[1765752685750,1e-08,3061.8,3061.7,10.34344963]
[1765752686742,1e-08,3061.8,3061.7,14.16666363]
[1765752687642,1e-08,3061.8,3061.7,14.74617163]
[1765752688516,0.001,3062.3,3061.8,4.81897928]
[1765752688722,0.001,3062.3,3061.8,41.60922602]
[1765752689712,0.001,3062.3,3061.8,44.87527866]
[1765752690319,0.001,3062.3,3062.2,0.455504]
[1765752690518,0.001,3062.3,3062.2,32.63397151]
[1765752690819,0.001,3062.3,3062.2,35.08938045]
[1765752691123,0.001,3062.9,3062.7,0.900104]
[1765752691124,1e-08,3062.8,3062.7,0.900104]
[1765752691447,1e-08,3062.8,3062.7,32.00057929]
[1765752691643,1e-08,3062.8,3062.7,34.74567218]
[1765752691818,1e-08,3062.8,3062.7,35.26567218]
[1765752693369,1e-08,3062.8,3062.7,34.77107218]
[1765752693536,1e-08,3062.8,3062.7,6.5604562]
[1765752693741,1e-08,3062.8,3062.7,8.9898742]
[1765752694570,1e-08,3062.8,3062.7,10.0758972]
[1765752694754,1e-08,3062.8,3062.7,8.5252152]
[1765752695353,1e-08,3062.8,3062.7,9.0198152]
[1765752696647,1e-08,3062.8,3062.7,9.4794152]
[1765752697387,1e-08,3062.8,3062.7,9.0198152]
[1765752697986,0.46250001,3062.8,3062.7,8.0052152]
[1765752698161,1e-08,3062.8,3062.7,10.3000862]
[1765752698745,1e-08,3062.8,3062.7,9.8054862]
[1765752699179,1e-08,3062.8,3062.7,9.2854862]
[1765752699381,0.11620001,3062.8,3062.7,6.0658562]
[1765752700195,0.11620001,3062.8,3062.7,9.2237502]
[1765752700352,0.11620001,3062.8,3062.7,6.0658562]
[1765752700553,0.11620001,3062.8,3062.7,9.8791392]
[1765752701500,0.11620001,3062.8,3062.7,9.8761992]
[1765752701852,1e-08,3062.8,3062.7,10.3707992]
[1765752703389,1e-08,3062.8,3062.7,11.2452112]
[1765752703965,1e-08,3062.8,3062.7,11.7048112]
[1765752704172,1e-08,3062.8,3062.7,7.0200562]
[1765752704380,1e-08,3062.8,3062.7,12.3437322]
[1765752704589,1e-08,3062.8,3062.7,11.7437322]
[1765752704788,0.11620001,3062.8,3062.7,9.4579992]
[1765752705394,0.11620001,3062.8,3062.7,16.06121863]
[1765752705395,1e-08,3062.8,3062.7,16.06121863]
[1765752705590,1e-08,3062.8,3062.7,15.02433363]
[1765752706278,1e-08,3062.8,3062.7,15.74065863]
[1765752706791,1e-08,3062.8,3062.7,19.65239206]
[1765752707483,1e-08,3062.8,3062.7,44.49924906]
[1765752711044,0.001,3062.9,3062.7,44.49924906]
[1765752711193,0.001,3063.6,3062.9,30.98597929]
[1765752711391,0.001,3063.6,3062.9,35.13915119]
[1765752711573,0.001,3063.6,3063.0,0.98597929]
[1765752711776,0.001,3063.6,3063.0,39.81306437]
[1765752711969,0.001,3063.6,3063.2,0.98597929]
[1765752712295,0.001,3063.6,3063.5,27.64183386]
[1765752712498,0.001,3063.6,3063.5,38.37929686]
[1765752712672,0.001,3063.6,3063.5,39.41937215]
[1765752713280,0.001,3063.6,3063.5,42.68361239]
[1765752713495,0.001,3063.9,3063.7,30.0]
[1765752713792,0.001,3063.9,3063.8,37.03495974]
[1765752714291,0.4635,3063.9,3063.8,32.80076331]
[1765752714901,0.001,3063.9,3063.8,33.29536331]
[1765752715403,0.001,3063.9,3063.8,36.55928393]
[1765752715776,0.001,3063.9,3063.8,37.01888393]
[1765752717097,0.001,3063.9,3063.8,37.41257615]
[1765752717606,0.001,3064.0,3063.9,31.37967151]
[1765752717905,0.001,3064.0,3063.9,36.83932807]
[1765752719608,0.001,3064.0,3063.9,40.10314216]
[1765752720504,0.001,3064.3,3064.0,30.98597929]
[1765752720679,0.001,3064.3,3064.0,30.85991429]
[1765752720876,0.001,3064.3,3064.0,30.37301429]
[1765752721080,0.001,3064.3,3064.0,31.98291495]
[1765752721474,0.001,3064.3,3064.0,36.86718752]
[1765752721982,0.001,3064.3,3064.0,36.37958752]
[1765752722384,0.4535,3064.1,3064.0,36.37958752]